[Event "VIII Open Semana Santa 2024"]
[Site "San Vicente del Raspeig"]
[Date "2024.03.31"]
[Round "8.20"]
[White "Galiano Martinez, Antonio"]
[Black "Schulman, Julia"]
[Result "0-1"]
[ECO "B22"]
[WhiteElo "1921"]
[BlackElo "1732"]
[Annotator "RC"]
[PlyCount "136"]
[EventDate "2024.03.27"]
[EventType "swiss"]
[EventCountry "ESP"]
[SourceTitle "playchess.com"]
[Source "ChessBase"]
[SourceQuality "1"]
[TimeControl "5400+30"]

1. e4 {[%emt 0:00:30]} c5 {[%emt 0:04:06]} 2. c3 {[%emt 0:00:00]} d5 {[%emt 0:00:18]} 3. exd5 {[%emt 0:00:00]} Qxd5 {[%emt 0:00:09]} 4. d4 {[%emt 0:00:00]} g6 {[%emt 0:00:35]} 5. Na3 {[%emt 0:01:27]} Bg7 {[%emt 0:00:59]} 6. Nf3 {[%emt 0:00:28]} Nf6 {[%emt 0:02:36]} 7. Bc4 {[%emt 0:02:09]} Qd8 {[%emt 0:04:09]} 8. O-O {[%emt 0:00:36]} cxd4 {[%emt 0:00:25]} 9. Nxd4 {[%emt 0:01:02]} O-O {[%emt 0:00:19]} 10. Re1 {[%emt 0:04:29]} a6 {[%emt 0:02:11]} 11. Nac2 {[%emt 0:05:41]} Qc7 {[%emt 0:00:41]} 12. Ne3 {[%emt 0:06:49]} b5 {[%emt 0:01:28]} 13. Be2 {[%emt 0:01:46]} e5 {[%emt 0:11:03]} 14. Nf3 {[%emt 0:06:09]} Bb7 {[%emt 0:01:13]} 15. a4 {[%emt 0:03:18]} Rd8 {[%emt 0:04:03]} 16. Qb3 {[%emt 0:00:40]} bxa4 {[%emt 0:08:47]} 17. Rxa4 {[%emt 0:02:06]} e4 {[%emt 0:07:14]} 18. Nd4 {[%emt 0:03:30]} Nd5 {[%emt 0:01:43]} 19. Bc4 {[%emt 0:05:47]} Nf4 {[%emt 0:07:30]} 20. Rb4 {[%emt 0:07:37]} Ra7 {[%emt 0:01:18]} 21. Ng4 {[%emt 0:13:13]} Nd3 {[%emt 0:03:18]} 22. Bxd3 {[%emt 0:01:04]} exd3 {[%emt 0:00:08]} 23. Bg5 {[%emt 0:00:25]} Rf8 {[%emt 0:11:43]} 24. Re7 {[%emt 0:02:02]} Qc5 {[%emt 0:01:27]} 25. Bf6 {[%emt 0:09:04]} Bd5 {[%emt 0:01:37]} 26. Ne6 {[%emt 0:14:48]} Rxe7 {[%emt 0:13:23]} 27. Bxe7 {[%emt 0:09:20]} Qxe7 {[%emt 0:00:28]} 28. Qxd5 {[%emt 0:00:00]} Qxe6 {[%emt 0:00:19]} 29. Qxd3 {[%emt 0:00:00]} Qe1+ {[%emt 0:01:04]} 30. Qf1 {[%emt 0:00:00]} Qxf1+ {[%emt 0:00:30]} 31. Kxf1 {[%emt 0:00:00]} Nd7 {[%emt 0:02:27]} 32. Ne3 {[%emt 0:02:30]} Rb8 {[%emt 0:00:35]} 33. Ra4 {[%emt 0:00:00]} Rxb2 {[%emt 0:00:55]} 34. Rxa6 {[%emt 0:00:00]} Bxc3 {[%emt 0:00:13]} 35. Rd6 {[%emt 0:00:00]} Ne5 {[%emt 0:00:57]} 36. Rd5 {[%emt 0:00:00]} Rb1+ {[%emt 0:01:30]} 37. Nd1 {[%emt 0:00:00]} f6 {[%emt 0:02:25]} 38. f4 {[%emt 0:00:00]} Ng4 {[%emt 0:01:27]} 39. Ke2 {[%emt 0:00:00]} Ba1 {[%emt 0:00:53]} 40. h3 {[%emt 0:00:00]} Nh6 {[%emt 0:00:05]} 41. g4 {[%emt 0:00:00]} f5 {[%emt 0:00:31]} 42. Ne3 {[%emt 0:00:00]} Rb2+ {[%emt 0:00:36]} 43. Kf3 {[%emt 0:00:13]} Rb3 {[%emt 0:00:19]} 44. Ke2 {[%emt 0:00:24]} fxg4 {[%emt 0:00:26]} 45. hxg4 {[%emt 0:00:07]} Bb2 {[%emt 0:00:40]} 46. g5 {[%emt 0:01:06]} Nf7 {[%emt 0:00:19]} 47. Ng4 {[%emt 0:00:32]} Rb4 {[%emt 0:01:38]} 48. Kf3 {[%emt 0:00:34]} Rb3+ {[%emt 0:00:39]} 49. Ke4 {[%emt 0:00:29]} Rb6 {[%emt 0:00:33]} 50. Ra5 {[%emt 0:00:48]} Rb7 {[%emt 0:00:53]} 51. Ra8+ {[%emt 0:00:37]} Kg7 {[%emt 0:00:13]} 52. Ra4 {[%emt 0:00:07]} Nd6+ {[%emt 0:00:59]} 53. Kd5 {[%emt 0:00:32]} Nf5 {[%emt 0:00:53]} 54. Rc4 {[%emt 0:00:48]} Rd7+ {[%emt 0:00:42]} 55. Kc6 {[%emt 0:00:38]} Re7 {[%emt 0:00:18]} 56. Kd5 {[%emt 0:00:31]} Ne3+ {[%emt 0:00:39]} 57. Nxe3 {[%emt 0:00:06]} Rxe3 {[%emt 0:00:03]} 58. Rc7+ {[%emt 0:00:13]} Kg8 {[%emt 0:00:19]} 59. Rc8+ {[%emt 0:00:14]} Kf7 {[%emt 0:00:05]} 60. Rc2 {[%emt 0:01:02]} Ba3 {[%emt 0:00:22]} 61. Rh2 {[%emt 0:00:27]} Kg7 {[%emt 0:00:23]} 62. Rc2 {[%emt 0:00:10]} Re7 {[%emt 0:00:20]} 63. Rc3 {[%emt 0:00:43]} Bb4 {[%emt 0:00:08]} 64. Rc4 {[%emt 0:00:13]} Bd2 {[%emt 0:00:18]} 65. Kd6 {[%emt 0:00:16]} Rf7 {[%emt 0:00:25]} 66. Ke5 {[%emt 0:00:26]} Rf5+ {[%emt 0:00:22]} 67. Ke6 {[%emt 0:00:05]} Bxf4 {[%emt 0:00:30]} 68. Ra4 {[%emt 0:01:24]} Bxg5 {[%emt 0:00:26]} 0-1

[Event "VIII Open Semana Santa 2024"]
[Site "San Vicente del Raspeig"]
[Date "2024.04.01"]
[Round "9.2"]
[White "Yuffa, Daniil"]
[Black "Piorun, Kacper"]
[Result "1/2-1/2"]
[ECO "A21"]
[WhiteElo "2606"]
[BlackElo "2599"]
[Annotator "TA"]
[PlyCount "69"]
[EventDate "2024.03.27"]
[EventType "swiss"]
[EventCountry "ESP"]
[SourceTitle "playchess.com"]
[Source "ChessBase"]
[SourceQuality "1"]
[TimeControl "5400+30"]

{[%evp 9,69,39,66,16,26,21,41,55,66,60,60,60,52,31,31,7,26,33,31,29,37,30,6,39,75,102,136,104,98,92,82,83,95,0,0,-37,-31,-39,0,-35,0,0,0,0,0,0,0,0,21,23,16,0,0,0,0,0,0,0,0,0,0,0]} 1. c4 {[%emt 0:02:40]} e5 {[%emt 0:00:19]} 2. g3 {[%emt 0:00:39]} d6 {[%emt 0:01:47]} 3. Nc3 {[%emt 0:00:16]} f5 {[%emt 0:00:59]} 4. d4 {[%emt 0:00:18]} Be7 {[%emt 0:00:12]} 5. Bh3 {[%emt 0:00:19]} c6 {[%emt 0:17:34]} 6. e4 {[%emt 0:09:33]} (6. dxe5 $14 dxe5 7. Qxd8+ Kxd8 8. Nf3) 6... exd4 $1 $11 {[%emt 0:03:22]} 7. Qxd4 {[%emt 0:00:09] With the idea Bf4.} Bf6 {[%emt 0:00:43]} 8. Qd3 {[%emt 0:10:36] White is slightly better.} Bxc3+ {[%emt 0:05:16]} 9. Qxc3 {[%emt 0:10:35]} Nf6 {[%emt 0:00:10]} 10. exf5 {[%emt 0:04:24]} O-O {[%emt 0:00:08]} 11. Ne2 {[%emt 0:01:39] And now 0-0 would win. Active counter play!} Ne4 {[%emt 0:03:40][%csl LRc3,LRf5]} 12. Qd4 {[%emt 0:02:09]} (12. Qe3 {simplifies} Qa5+ 13. Nc3 Bxf5 14. Bxf5 Rxf5 15. O-O) 12... Bxf5 {[%emt 0:06:53]} (12... Qa5+ $5 13. b4 Qxb4+ 14. Kf1 Nf6 $14) 13. Bxf5 {[%emt 0:04:49]} Qa5+ {[%emt 0:00:04]} 14. Nc3 {[%emt 0:00:19]} Rxf5 {[%emt 0:00:12]} 15. O-O $36 {[%emt 0:00:25][%mdl 2048] White is pushing.} (15. Qxe4 Re5 16. O-O Rxe4 17. Nxe4 Nd7 $17) 15... Nxc3 {[%emt 0:01:34]} 16. bxc3 {[%emt 0:03:09][%cal Oc1f4]} d5 {[%emt 0:13:41]} 17. Qg4 {[%emt 0:03:45]} Rf8 {[%emt 0:00:35]} 18. Rb1 {[%emt 0:07:25]} Qc7 {[%emt 0:03:29]} 19. Bf4 {[%emt 0:04:35] Black is weak on the dark squares} Qf7 {[%emt 0:01:19]} 20. Bd6 {[%emt 0:14:36]} Re8 {[%emt 0:02:18]} 21. Rfd1 {[%emt 0:00:43]} (21. Rfe1 $16 {Strongly threatening Rxe8+.} Na6 22. cxd5 cxd5 23. a4) 21... dxc4 {[%emt 0:04:43]} 22. Ba3 {[%emt 0:07:00]} h5 {[%emt 0:09:00]} 23. Qh3 {[%emt 0:00:01]} b6 {[%emt 0:01:10]} 24. Rd4 {[%emt 0:06:52]} Na6 {[%emt 0:01:00]} 25. Rd7 {[%emt 0:02:23]} Qg6 {[%emt 0:08:45]} 26. Rbd1 {[%emt 0:00:48]} Re2 {[%emt 0:02:06]} 27. Qh4 {[%emt 0:00:47]} Re4 {[%emt 0:01:15]} 28. f4 $1 {[%emt 0:00:15]} Nc5 {[%emt 0:04:47]} 29. Bxc5 {[%emt 0:00:20]} bxc5 {[%emt 0:00:01]} 30. Qg5 {[%emt 0:01:06] The position is equal.} (30. R1d6 {is interesting.} Qf5 31. Qg5 Re1+ 32. Kf2) 30... Qxg5 {[%emt 0:00:09]} 31. fxg5 {[%emt 0:00:02]} Rg4 {[%emt 0:00:54]} 32. Rd8+ {[%emt 0:00:39]} Rxd8 {[%emt 0:00:04]} 33. Rxd8+ {[%emt 0:00:01]} Kh7 {[%emt 0:00:06]} 34. Rd7 {[%emt 0:00:34]} Rxg5 {[%emt 0:00:16]} 35. Rxa7 {[%emt 0:00:21] Weighted Error Value: White=0.15 (very precise) /Black=0.08 (flawless) .  Mistake:       	White=1     	---        Inaccurate:     	White=2     	Black=4      OK:         	White=13    	Black=16     Best:        	White=1     	Black=4      Strong:       	White=1     	Black=1} 1/2-1/2

[Event "VIII Open Semana Santa 2024"]
[Site "San Vicente del Raspeig"]
[Date "2024.04.01"]
[Round "9.3"]
[White "Alexakis, Dimitris"]
[Black "Shuvalova, Polina"]
[Result "1-0"]
[ECO "C26"]
[WhiteElo "2448"]
[BlackElo "2455"]
[Annotator "TA"]
[PlyCount "105"]
[EventDate "2024.03.27"]
[EventType "swiss"]
[EventCountry "ESP"]
[SourceTitle "playchess.com"]
[Source "ChessBase"]
[SourceQuality "1"]
[TimeControl "5400+30"]

{[%evp 9,105,16,20,1,10,-16,-24,-39,-4,-28,0,0,0,-4,0,-35,16,0,0,0,0,0,0,0,-7,-26,0,-36,-37,-56,-45,-52,-50,-51,-42,-53,-50,-56,-52,-49,-33,-71,-62,-69,-78,-82,-79,-79,-79,-98,-56,-116,-33,-33,0,-33,-33,-141,-129,-160,-136,-166,-159,-135,-160,-149,49,50,51,52,306,323,327,327,327,327,567,0,0,0,597,588,1303,1338,1378,0,136,0,1766,1530,29984,1242,1220,1220,1129,1073,1014,941]} 1. e4 {[%emt 0:04:47]} e5 {[%emt 0:00:04]} 2. Nc3 {[%emt 0:01:32]} Nf6 {[%emt 0:00:16]} 3. g3 {[%emt 0:02:28]} d5 {[%emt 0:00:17]} 4. exd5 {[%emt 0:00:06]} c6 {[%emt 0:01:00]} 5. dxc6 {[%emt 0:07:46]} Nxc6 {[%emt 0:02:15]} 6. Bg2 {[%emt 0:00:33]} Bg4 {[%emt 0:02:04]} 7. f3 {[%emt 0:21:19]} (7. Bf3 $5 Qd7 8. Bxg4 Nxg4 9. h3 $11) 7... Bf5 {[%emt 0:02:04][%mdl 1024] Black has compensation.} 8. Ne4 {[%emt 0:05:46] Black has an edge.} h5 {[%emt 0:04:23]} 9. d3 {[%emt 0:02:58]} Nd5 {[%emt 0:01:06]} 10. Nh3 {[%emt 0:08:29]} Qb6 {[%emt 0:02:35]} 11. c3 {[%emt 0:00:44] Prevents Bb4} O-O-O {[%emt 0:04:58]} 12. Qb3 {[%emt 0:05:50]} Ne3 {[%emt 0:11:53]} ({Better is} 12... Bb4 $15 13. Ke2 h4) 13. Qxb6 $11 {[%emt 0:00:44]} Nxg2+ {[%emt 0:00:05]} 14. Kf2 {[%emt 0:00:04]} axb6 {[%emt 0:00:07]} 15. Kxg2 {[%emt 0:00:27]} Rxd3 {[%emt 0:06:15]} 16. Nhf2 {[%emt 0:00:12]} Rd7 {[%emt 0:00:28]} 17. b4 {[%emt 0:01:36]} Be7 {[%emt 0:01:52]} 18. a4 {[%emt 0:01:47]} Be6 {[%emt 0:07:16]} 19. Be3 {[%emt 0:08:54]} f5 {[%emt 0:01:35]} 20. Ng5 {[%emt 0:01:00]} Bc4 {[%emt 0:00:36][%cal Of5f4]} 21. h4 {[%emt 0:00:28]} Kc7 {[%emt 0:01:12]} 22. Rhd1 {[%emt 0:17:00]} Rxd1 {[%emt 0:01:00]} 23. Nxd1 {[%emt 0:00:02]} Ra8 {[%emt 0:01:19]} 24. Bf2 {[%emt 0:03:10]} g6 {[%emt 0:01:21]} 25. Ne3 {[%emt 0:00:24]} Bb3 {[%emt 0:03:57]} 26. Ra3 {[%emt 0:02:23]} Bg8 {[%emt 0:00:19]} (26... Rxa4 $2 27. Rxb3 Ra2 28. Nd5+ Kd8 29. Rb1 $18 (29. Nxb6 Bxg5 30. hxg5 Ke7 $18)) 27. Ra1 {[%emt 0:00:22]} Bf6 {[%emt 0:04:28]} 28. Nd1 {[%emt 0:02:28]} Rd8 {[%emt 0:01:36]} 29. Be3 {[%emt 0:00:56]} Rd3 {[%emt 0:12:32]} 30. Kf2 {[%emt 0:00:02] [#]} (30. Nh3 $1 $15) 30... Bd5 {[%emt 0:07:39]} (30... Ne7 $1 $17 {Strongly threatening ...Nd5.} 31. a5 bxa5 32. bxa5 Bb3) 31. Rc1 $15 {[%emt 0:00:23] Black must now prevent Nb2.} Bg8 {[%emt 0:03:26]} 32. Nb2 {[%emt 0:00:13]} Rd8 {[%emt 0:00:10]} 33. a5 {[%emt 0:01:04]} bxa5 $17 {[%emt 0:01:09]} 34. Na4 {[%emt 0:00:02]} Kb8 {[%emt 0:02:45] ...b5 is the strong threat.} 35. b5 {[%emt 0:00:14]} Ne7 {[%emt 0:00:06]} (35... Bb3 $2 36. Nc5 Bd5 (36... Bxg5 $2 37. hxg5 Bd5 38. c4 $18) 37. c4 $18 (37. bxc6 Bxc6 38. c4 Rc8 $18)) 36. c4 {[%emt 0:00:13]} Nc8 {[%emt 0:00:21]} 37. c5 {[%emt 0:01:06]} Bb3 $2 {[%emt 0:00:30] [#]} (37... Be7 $17 38. b6 Bf8) 38. c6 $1 $14 {[%emt 0:00:02]} bxc6 {[%emt 0:05:40]} (38... Bxa4 39. c7+ Ka8 40. cxd8=Q (40. cxd8=R b6 41. Rdxc8+ Kb7 42. R1c7#) 40... b6 41. Rxc8+ Kb7 42. Qd7#) 39. Nc5 {[%emt 0:00:16]} (39. Rxc6 Bxa4 (39... Rd6 40. Nc5 $11) 40. Rxf6 Bxb5 $17) 39... Bd5 {[%emt 0:01:27][%mdl 8192]} (39... Bg8 $14 40. bxc6 Be7) 40. bxc6 $18 {[%emt 0:01:38]} Bxg5 {[%emt 0:00:37]} 41. Na6+ {[%emt 0:00:14]} (41. Bxg5 Rd6 $14) 41... Ka8 {[%emt 0:00:07]} 42. hxg5 {[%emt 0:00:38] Hoping for Rb1.} f4 $2 {[%emt 0:03:44]} (42... a4 {keeps fighting.} 43. Rd1 Ne7) 43. Nc7+ {[%emt 0:00:04]} Kb8 {[%emt 0:00:02]} 44. Na6+ {[%emt 0:00:07]} (44. gxf4 $2 Kxc7 45. f5 Ne7 $19 (45... Bxc6 $2 46. Rc5 $19) (45... gxf5 $2 46. Bd2 $19)) 44... Ka8 {[%emt 0:00:01]} 45. gxf4 {[%emt 0:00:16]} exf4 {[%emt 0:00:04] [#]} 46. Nc7+ $1 {[%emt 0:00:04]} ({Less strong is} 46. Bxf4 Ka7 $18) 46... Kb8 {[%emt 0:00:02]} 47. Na6+ $2 {[%emt 0:00:09]} (47. Bxf4 $18 {and the rest is easy. White wants to mate with Rb1+.} Bb3 48. Ne6+ Rd6 49. Nd4 (49. Bxd6+ Nxd6 50. Nd4 a4 $18)) 47... Ka8 $16 {[%emt 0:00:01]} 48. Nc7+ $2 {[%emt 0:00:47][%mdl 8192]} (48. Bd2 $16 Bxf3 49. Bxf4) 48... Kb8 $18 {[%emt 0:00:02]} 49. Bxf4 {[%emt 0:00:04] Rb1+ would kill now.} Ka7 {[%emt 0:01:14]} 50. Rb1 {[%emt 0:00:21]} (50. Be3+ $142 Nb6 51. Nxd5 (51. Rd1 Bxf3 52. Rxd8 Bxc6 $18) 51... Ka6 52. Bxb6 (52. Nxb6 Kb5 53. c7 Rg8 54. c8=Q Rxc8 55. Nxc8 h4 56. Ne7 Kb4 57. Nxg6 h3) 52... Rc8 53. Rc5 Rxc6 54. Rxc6 Kb7 55. Rc5 (55. Rxg6 Ka6 56. Bd4+ Kb7 57. Rb6+ Kc8 58. g6 Kd8 59. g7 Kd7 60. Nf6+ Kd8 61. g8=Q+ Ke7 62. Qe8#)) 50... Bxc6 {[%emt 0:01:43] White is clearly winning.} 51. Be3+ {[%emt 0:00:05]} Nb6 {[%emt 0:00:02]} 52. Rxb6 {[%emt 0:00:12] White threatens Rb4+ and mate.} Rd2+ {[%emt 0:01:38]} 53. Ke1 {[%emt 0:00:15] Weighted Error Value: White=0.40/Black=0.48.  Loses game:     	---       	Black=4      Mistake:       	White=2     	Black=4      Inaccurate:     	White=5     	Black=6      OK:         	White=18    	Black=18     Best:        	White=4     	Black=2      Strong:       	White=2     	---} 1-0

[Event "VIII Open Semana Santa 2024"]
[Site "San Vicente del Raspeig"]
[Date "2024.04.01"]
[Round "9.5"]
[White "Xiao, Tong(Qd)"]
[Black "Heimann, Mark"]
[Result "1/2-1/2"]
[ECO "C65"]
[WhiteElo "2484"]
[BlackElo "2435"]
[Annotator "RC"]
[PlyCount "36"]
[EventDate "2024.03.27"]
[EventType "swiss"]
[EventCountry "ESP"]
[SourceTitle "playchess.com"]
[Source "ChessBase"]
[SourceQuality "1"]
[TimeControl "5400+30"]

1. e4 {[%emt 0:00:01]} e5 {[%emt 0:00:34]} 2. Nf3 {[%emt 0:00:06]} Nc6 {[%emt 0:00:02]} 3. Bb5 {[%emt 0:00:06]} Nf6 {[%emt 0:00:02]} 4. d3 {[%emt 0:00:06]} Bc5 {[%emt 0:00:04]} 5. c3 {[%emt 0:00:05]} O-O {[%emt 0:00:05]} 6. O-O {[%emt 0:00:06]} d5 {[%emt 0:00:07]} 7. Nbd2 {[%emt 0:00:30]} dxe4 {[%emt 0:00:22]} 8. dxe4 {[%emt 0:00:05]} a5 {[%emt 0:00:07]} 9. Qc2 {[%emt 0:00:58]} Qe7 {[%emt 0:00:06]} 10. a4 {[%emt 0:03:23]} Nb8 {[%emt 0:00:04]} 11. Be2 {[%emt 0:02:41]} Rd8 {[%emt 0:00:54]} 12. Nc4 {[%emt 0:01:47]} Nbd7 {[%emt 0:00:07]} 13. Bg5 {[%emt 0:00:48]} b6 {[%emt 0:03:54]} 14. Rfe1 {[%emt 0:05:36]} Bb7 {[%emt 0:01:06]} 15. Bf1 {[%emt 0:02:50]} Qe6 {[%emt 0:05:04]} 16. h3 {[%emt 0:11:31]} Be7 {[%emt 0:02:56]} 17. Bxf6 {[%emt 0:02:31]} Qxf6 {[%emt 0:07:25]} 18. Ne3 {[%emt 0:12:15]} Nc5 {[%emt 0:01:56]} 1/2-1/2

[Event "VIII Open Semana Santa 2024"]
[Site "San Vicente del Raspeig"]
[Date "2024.04.01"]
[Round "9.6"]
[White "Vega Gutierrez, Sabrina"]
[Black "Ivanchuk, Vasyl"]
[Result "0-1"]
[ECO "B47"]
[WhiteElo "2382"]
[BlackElo "2625"]
[Annotator "TA"]
[PlyCount "78"]
[EventDate "2024.03.27"]
[EventType "swiss"]
[EventCountry "ESP"]
[SourceTitle "playchess.com"]
[Source "ChessBase"]
[SourceQuality "1"]
[TimeControl "5400+30"]

{[%evp 14,78,18,19,13,14,9,1,11,5,16,6,10,12,39,-12,-37,-27,-13,-4,0,0,0,0,0,0,0,0,0,-9,0,-16,-20,-24,-11,-14,-21,-13,0,0,0,0,0,0,0,0,0,0,0,0,0,0,0,0,0,0,0,0,0,-347,-355,-540,-492,-480,-475,-29983,-29974]} 1. e4 {[%emt 0:00:04]} c5 {[%emt 0:00:05]} 2. Nf3 {[%emt 0:00:05]} Nc6 {[%emt 0:00:03]} 3. d4 {[%emt 0:00:10]} cxd4 {[%emt 0:00:03]} 4. Nxd4 {[%emt 0:00:07]} e6 {[%emt 0:00:39]} 5. Nc3 {[%emt 0:01:38]} Qc7 {[%emt 0:00:10]} 6. g3 {[%emt 0:09:38]} a6 {[%emt 0:05:23]} 7. Bg2 {[%emt 0:00:19]} Nf6 {[%emt 0:00:07]} 8. O-O {[%emt 0:00:48]} h5 {[%emt 0:00:41]} 9. Re1 {[%emt 0:02:03][%cal Oc3d5]} Nxd4 {[%emt 0:01:00]} 10. Qxd4 {[%emt 0:00:07] Threatens to win with e5.} Bc5 {[%emt 0:00:42] The position is equal.} 11. Qd2 {[%emt 0:20:57]} Ng4 {[%emt 0:03:44]} 12. Nd1 {[%emt 0:02:22]} d6 {[%emt 0:09:44]} 13. Qc3 {[%emt 0:12:41]} Qb6 {[%emt 0:07:06][%cal Rc5f2]} 14. Ne3 {[%emt 0:03:34]} (14. Qxg7 $14 Bxf2+ (14... Bd4 15. e5 $16) 15. Kh1) 14... e5 $11 {[%emt 0:01:36]} 15. h3 {[%emt 0:12:59]} Nxe3 {[%emt 0:18:12]} 16. Bxe3 {[%emt 0:00:19]} Be6 {[%emt 0:00:03]} 17. Bxc5 {[%emt 0:03:52]} Qxc5 {[%emt 0:00:05]} 18. Qd2 {[%emt 0:01:09]} Rc8 {[%emt 0:03:55][%cal Oh5h4]} 19. c3 {[%emt 0:00:43]} h4 {[%emt 0:02:10]} 20. g4 {[%emt 0:01:30]} f6 {[%emt 0:00:05]} 21. Re3 {[%emt 0:02:14]} Ke7 {[%emt 0:00:18]} 22. b3 {[%emt 0:03:42]} b5 {[%emt 0:00:36]} 23. g5 {[%emt 0:04:23]} Rh5 {[%emt 0:22:23][%cal Bh8h5,Bh5g5,Bg5g4][%mdl 32]} 24. gxf6+ {[%emt 0:00:17]} gxf6 {[%emt 0:00:01]} 25. Kh2 {[%emt 0:01:04]} Rg5 {[%emt 0:00:05]} 26. Rd1 {[%emt 0:06:53]} Rc6 {[%emt 0:00:31]} 27. Bf3 {[%emt 0:00:31]} a5 {[%emt 0:02:12]} 28. Bg4 {[%emt 0:01:23]} Bxg4 {[%emt 0:00:43]} 29. hxg4 {[%emt 0:00:03]} Rxg4 {[%emt 0:00:07]} 30. Qe2 {[%emt 0:00:22]} Rf4 {[%emt 0:00:37]} 31. Rd5 {[%emt 0:05:58]} Qb6 {[%emt 0:00:38][%cal Oc6c3] [#] ...Rxc3! would now be deadly.} 32. Rxb5 {[%emt 0:04:01]} Rxf2+ $1 {[%emt 0:00:05]} 33. Qxf2 {[%emt 0:00:04]} Qxb5 {[%emt 0:00:03][%mdl 4096] Endgame. KQR-KQR} 34. Rh3 {[%emt 0:00:53]} d5 {[%emt 0:01:58]} 35. exd5 {[%emt 0:00:35]} Qxd5 {[%emt 0:00:05] And now ...Rd6 would win.} 36. Rxh4 $2 {[%emt 0:00:14][%mdl 8192]} (36. c4 $1 $11 Qd1 37. Qxh4) 36... Rxc3 $19 {[%emt 0:04:54] ...Qd3 is the strong threat.} 37. Rh6 {[%emt 0:00:36]} (37. Rc4 {was worth a try.} Rd3 (37... Rxc4 $2 38. bxc4 Qd4 39. Qc2 $19) 38. Qa7+ Ke6 39. Qb6+ Kf5 40. Rc2 Rh3+ 41. Kxh3 Qd3+ 42. Kh4 Qxc2 43. Kg3 Qc3+ (43... Qxa2 $2 44. Qb7 $17) 44. Kg2) 37... Qf3 {[%emt 0:03:47]} 38. Rh7+ {[%emt 0:00:16]} Ke6 {[%emt 0:00:21]} 39. Qd2 {[%emt 0:00:51] [#]} (39. Qxf3 $19 Rxf3 40. Kh1) 39... Qc6 {[%emt 0:02:47] Weighted Error Value: White=0.42/Black=0.06 (flawless) .  Loses game:     	White=1     	---        Mistake:       	White=3     	---        Inaccurate:     	---       	Black=1      OK:         	White=9     	Black=9      Best:        	---       	Black=2      Strong:       	---       	Black=1} 0-1